{"text_format":"1","workbook":"xlsx","n_sheets":2,"sheets":["PRINC","LISTE choix"],"not_rendered":{"charts":0,"images":1,"macros":1,"external_links":1,"defined_names":23,"comments":0,"pivot_tables":0},"unopened":[],"bounds":{"document_bytes":16777216,"sheet_cells":100000,"rows_first":2000,"rows_last":500,"rows_between":2000,"halvings":0,"cell_chars":16384,"cell_head_chars":4096},"cells_cut":0,"cells_raw":0,"read":"whole","date_system":"1900"}

{"sheet":"PRINC","index":0,"n_rows":39,"n_cols":22,"rows_kept":39,"cut":false,"hidden":false,"merged":[[7,3,7,5],[6,15,6,17],[6,18,7,18],[6,19,7,19],[6,20,7,20],[1,9,2,11],[5,6,6,6],[3,9,4,11],[3,6,4,8],[6,21,7,21]]}
[]
[null,null,null,null,null,1,null,null,null,{"$f":" IF($J$4=0,\"DATE ↓\",\"\")","v":"DATE ↓"}]
[null,null,null,null,null,1]
[]
[]
[null,null,null,null,null,null,{"$f":" IF($H$6=0,\"Lieu →\",\"\")","v":"Lieu →"}]
[null,null,null,null,null,null,null,null,null,null,null,null,null,null,null,"REMARQUE",null,null,"Inv","DEL Ligne","DEL Bleu","DEL Rouge"]
["a","Classe","Style","Rounds",null,null,"Coin Bleu","Club","KG","Age","a","Coin Rouge","Club","KG","Age","N° Cbt","Bleu","Rouge"]
[1,1,1,1,1,null,null,null,null,null,null,1,1,1,1]
[null,null,null,null,{"$f":" IF(A10<>0,\"X\",\"\")","v":""},null,null,null,null,null,{"$f":" IF(A10<>0,\"vs\",\"\")","v":""},null,null,null,null,{"$f":"A10","v":0}]
[null,null,null,null,"",null,null,null,null,null,"",null,null,null,null,0]
[null,null,null,null,"",null,null,null,null,null,"",null,null,null,null,0]
[null,null,null,null,"",null,null,null,null,null,"",null,null,null,null,0]
[null,null,null,null,"",null,null,null,null,null,"",null,null,null,null,0]
[null,null,null,null,"",null,null,null,null,null,"",null,null,null,null,0]
[null,null,null,null,"",null,null,null,null,null,"",null,null,null,null,0]
[null,null,null,null,"",null,null,null,null,null,"",null,null,null,null,0]
[null,null,null,null,"",null,null,null,null,null,"",null,null,null,null,0]
[null,null,null,null,"",null,null,null,null,null,"",null,null,null,null,0]
[null,null,null,null,"",null,null,null,null,null,"",null,null,null,null,0]
[null,null,null,null,"",null,null,null,null,null,"",null,null,null,null,0]
[null,null,null,null,"",null,null,null,null,null,"",null,null,null,null,0]
[null,null,null,null,"",null,null,null,null,null,"",null,null,null,null,0]
[null,null,null,null,"",null,null,null,null,null,"",null,null,null,null,0]
[null,null,null,null,"",null,null,null,null,null,"",null,null,null,null,0]
[null,null,null,null,"",null,null,null,null,null,"",null,null,null,null,0]
[null,null,null,null,"",null,null,null,null,null,"",null,null,null,null,0]
[null,null,null,null,"",null,null,null,null,null,"",null,null,null,null,0]
[null,null,null,null,"",null,null,null,null,null,"",null,null,null,null,0]
[null,null,null,null,"",null,null,null,null,null,"",null,null,null,null,0]
[null,null,null,null,"",null,null,null,null,null,"",null,null,null,null,0]
[null,null,null,null,{"$f":" IF(A32<>0,\"X\",\"\")","v":""},null,null,null,null,null,{"$f":" IF(A32<>0,\"vs\",\"\")","v":""},null,null,null,null,{"$f":"A32","v":0}]
[null,null,null,null,"",null,null,null,null,null,"",null,null,null,null,0]
[null,null,null,null,"",null,null,null,null,null,"",null,null,null,null,0]
[null,null,null,null,"",null,null,null,null,null,"",null,null,null,null,0]
[null,null,null,null,"",null,null,null,null,null,"",null,null,null,null,0]
[null,null,null,null,"",null,null,null,null,null,"",null,null,null,null,0]
[null,null,null,null,"",null,null,null,null,null,"",null,null,null,null,0]
[null,null,null,null,"",null,null,null,null,null,"",null,null,null,null,0]

{"sheet":"LISTE choix","index":1,"n_rows":16,"n_cols":8,"rows_kept":16,"cut":false,"hidden":false,"merged":[[0,1,0,2],[0,4,0,5]]}
[null,"Style",null,null,"Classe"]
[null,"Abrv","Denomination",null,"Abrv","Denomination",null,{"$f":"IFERROR(_xlfn.XLOOKUP([1]PRINC!B10,'LISTE choix'!E3:E15,'LISTE choix'!F3:F15),\"\")","v":""}]
[null,"ANG","ANGLAISE ",null,"A","A"]
[null,"F","Full Contact",null,"AMA","AMATEUR"]
[null,"FMT","Full Muay Thai",null,"AMAN","NOVICE AMATEUR"]
[null,"JJB","Jiu-jitsu brésilien",null,"B","B"]
[null,"K","Kick Boxing",null,"C","C"]
[null,"K1","K1",null,"D","D"]
[null,"KBMA","KB MAX ANGLAISE",null,"D+","D sans casque"]
[null,"KBMF","KB MAX Full Contact",null,"DEMO","DEMO"]
[null,"KBMFMT","KB MAX Full Muay Thai",null,"EAMA","ELITE AMATEUR"]
[null,"KBMK1","KB MAX K1",null,"EDU","Educative"]
[null,"KBMK1","KB MAX Kick Boxing",null,"J","JUNIOR"]
[null,"KBMM","KB MAX MUAY THAI",null,"N","NOVICE"]
[null,"MMA","MMA",null,"PRO","PROFESSIONNEL"]
[null,"MT","MUAY THAI"]